fUSD/lending_fUSD_20240327
["ID","MTS","AMOUNT","RATE_DAILY","PERIOD"]
[320718271,1711531848356,-712.79,0.00054794,120]
[320718273,1711531848365,-7358.75,0.00054794,120]
[320718274,1711531848374,-7568.71,0.00054794,120]
[320718275,1711531848384,-500.0,0.00054794,120]
[320718276,1711531848394,-151.0,0.00054794,120]
[320718277,1711531848404,-500.0,0.00054794,120]
[320718278,1711531848414,-151.0,0.00054794,120]
[320718279,1711531848425,-18585.37,0.00054794,120]
[320718280,1711531848434,-1070.33,0.00054794,120]
[320718281,1711531848444,-1202.8,0.00054794,120]
[320718282,1711531848455,-1312.45,0.00054794,120]
[320718283,1711531848465,-2530.08,0.00054794,120]
[320718284,1711531848474,-151.0,0.00054794,120]
[320718285,1711531848483,-151.0,0.00054794,120]
[320718286,1711531848495,-2457.99,0.00054794,120]
[320718287,1711531848505,-500.0,0.00054794,120]
[320718288,1711531848515,-5452.71,0.00054794,120]
[320718289,1711531848527,-1085.21,0.00054794,120]
[320718290,1711531848537,-459.75,0.00054794,120]
[320718291,1711531848547,-2099.27,0.00054794,120]
[320718292,1711531848557,-500.0,0.00054794,120]
[320718293,1711531848567,-2327.39,0.00054794,120]
[320718294,1711531848577,-665.11,0.00054794,120]
[320718295,1711531848586,-1958.13,0.00054794,120]
[320718296,1711531848596,-8602.32,0.00054794,120]
[320718297,1711531848608,-987.71,0.00054794,120]
[320718298,1711531848618,-635.61,0.00054794,120]
[320718299,1711531848627,-788.03,0.00054794,120]
[320718300,1711531848638,-902.58,0.00054794,120]
[320718301,1711531848647,-186.99932662,0.00054794,2]
[320718302,1711531848657,-1292.62,0.00054794,120]
[320718303,1711531848667,-500.0,0.00054794,120]
[320718304,1711531848676,-1555.33,0.00054794,120]
[320718305,1711531848686,-151.0,0.00054794,30]
[320718306,1711531848695,-500.0,0.00054794,120]
[320718307,1711531848705,-151.0,0.00054794,30]
[320718308,1711531848715,-1456.05,0.00054794,120]
[320718309,1711531848725,-500.0,0.00054794,120]
[320718310,1711531848736,-10798.45,0.00054794,120]
[320718311,1711531848745,-1938.92,0.00054794,120]
[320718312,1711531848754,-1854.86,0.00054794,120]
[320718313,1711531848763,-5968.92,0.00054794,120]
[320718314,1711531848772,-1171.98,0.00054794,120]
[320718315,1711531848782,-500.0,0.00054794,120]
[320718316,1711531848790,-1935.06,0.00054794,120]
[320718317,1711531848799,-928.26,0.00054794,120]
[320718318,1711531848808,-158.397024,0.00054794,120]
[320718319,1711531848817,-158.397024,0.00054794,120]
[320718320,1711531848827,-1848.33,0.00054794,120]
[320718321,1711531848837,-1479.48,0.00054794,120]
[320718322,1711531848846,-1536.63,0.00054794,120]
[320718323,1711531848855,-228.979437,0.00054794,120]
[320718324,1711531848864,-158.397024,0.00054794,120]
[320718325,1711531848873,-158.397024,0.00054794,120]
[320718326,1711531848883,-569.72,0.00054794,120]
[320718327,1711531848892,-516.43,0.00054794,120]
[320718328,1711531848901,-58887.4332511,0.00054795,2]
[320718329,1711531848910,-3351.5755413,0.00054795,2]
[320718330,1711531848919,-877.1641667,0.00054795,2]
[320718331,1711531848928,-157.032718,0.00054798,104]
[320718332,1711531848937,-3449.0,0.000548,120]
[320718333,1711531848946,-7581.9435701,0.00054833,2]
[320718334,1711531848955,-160.17758889,0.00054883,60]
[320718335,1711531848964,-151.54545459,0.00054887,60]
[320718336,1711531848974,-229.74375147,0.000549,120]
[320718337,1711531848983,-23276.57668381,0.000549,30]
[320718338,1711531848993,-1012.31357174,0.000549,120]
[320718339,1711531849003,-800.0,0.000549,20]
[320718340,1711531849015,-12371.69132285,0.00054968,2]
[320718341,1711531849024,-151.0,0.00054968,120]
[320718342,1711531849033,-269.33658709,0.00054968,4]
[320718343,1711531849044,-392.0,0.0005497,15]
[320718344,1711531849054,-392.0,0.0005498,15]
[320718345,1711531849064,-392.0,0.0005499,15]
[320718346,1711531849073,-1000.0,0.00055,120]
[320718347,1711531849083,-5000.0,0.00055,120]
[320718348,1711531849094,-501.53,0.00055,7]
[320718349,1711531849103,-500.0,0.00055,7]
[320718350,1711531849112,-500.0,0.00055,7]
[320718351,1711531849121,-9356.0,0.00055,30]
[320718352,1711531849131,-4368.37004571,0.00055,30]
[320718353,1711531849452,-5330.62995429,0.00055,30]
[320718354,1711531849463,-500.0,0.00055,14]
[320718355,1711531849472,-12734.0,0.00055,120]
[320718356,1711531849483,-10000.0,0.00055,20]
[320718357,1711531849493,-1000.0,0.00055,120]
[320718358,1711531849502,-410.0,0.00055,120]
[320718359,1711531849511,-8149.06608272,0.00055,2]
[320718360,1711531849521,-479.0,0.00055,44]
[320718361,1711531849530,-472.0,0.00055,34]
[320718362,1711531849541,-1000.0,0.00055,120]
[320718363,1711531849550,-158.22,0.00055,30]
[320718364,1711531849720,-151.0,0.00055,120]
[320718365,1711531849733,-25843.338,0.00055,120]
[320718366,1711531849745,-150.0,0.00055067,30]
[320718367,1711531849755,-150.0,0.00055067,30]
[320718368,1711531849765,-560.0,0.00055068,120]
[320718369,1711531849774,-500.0,0.00055068,120]
[320718370,1711531849784,-500.0,0.00055068,120]
[320718371,1711531849794,-500.0,0.00055068,120]
[320718372,1711531849803,-500.0,0.00055068,120]
[320718373,1711531849812,-500.0,0.00055068,120]
[320718374,1711531849822,-495.20132393,0.00055068,120]
[320718375,1711531849833,-520.00232155,0.00055068,120]
[320718376,1711531849844,-500.0,0.00055068,120]
[320718377,1711531849853,-500.0,0.00055068,120]
[320718378,1711531849862,-151.0,0.00055068,120]
[320718379,1711531849871,-151.0,0.00055068,120]
[320718380,1711531849880,-1041.2,0.00055068,120]
[320718381,1711531849889,-500.0,0.00055068,120]
[320718382,1711531849899,-500.0,0.00055068,120]
[320718383,1711531849908,-500.0,0.00055068,120]
[320718384,1711531849917,-500.0,0.00055068,120]
[320718385,1711531849926,-500.0,0.00055068,120]
[320718386,1711531849935,-504.0924769,0.00055068,120]
[320718387,1711531849945,-151.0,0.00055068,120]
[320718388,1711531849954,-151.0,0.00055068,120]
[320718389,1711531849963,-516.50223993,0.00055068,120]
[320718390,1711531849971,-500.0,0.00055068,120]
[320718391,1711531849980,-519.02749721,0.00055068,120]
[320718392,1711531849990,-500.0,0.00055068,120]
[320718393,1711531849999,-500.0,0.00055068,120]
[320718394,1711531850009,-500.0,0.00055068,120]
[320718395,1711531850019,-500.0,0.00055068,120]
[320718396,1711531850029,-629.99,0.00055068,120]
[320718397,1711531850038,-510.27,0.00055068,120]
[320718398,1711531850048,-500.0,0.00055068,120]
[320718399,1711531850057,-500.0,0.00055068,120]
[320718400,1711531850066,-500.0,0.00055068,120]
[320718401,1711531850076,-510.75527937,0.00055068,120]
[320718402,1711531850086,-627.08054439,0.00055068,120]
[320718403,1711531850096,-500.0,0.00055068,120]
[320718404,1711531850106,-1206.79,0.00055068,120]
[320718405,1711531850115,-511.70147426,0.00055068,120]
[320718406,1711531850125,-500.0,0.00055068,120]
[320718407,1711531850134,-501.94377483,0.00055068,120]
[320718408,1711531850143,-500.0,0.00055068,120]
[320718409,1711531850153,-500.0,0.00055068,120]
[320718410,1711531850162,-236.02,0.00055068,120]
[320718411,1711531850171,-500.0,0.00055068,120]
[320718412,1711531850180,-500.0,0.00055068,120]
[320718413,1711531850190,-693.22,0.00055068,120]
[320718414,1711531850199,-500.0,0.00055068,120]
[320718415,1711531850208,-500.0,0.00055068,120]
[320718416,1711531850217,-500.0,0.00055068,120]
[320718417,1711531850226,-633.17,0.00055068,120]
[320718418,1711531850235,-500.0,0.00055068,120]
[320718419,1711531850244,-500.0,0.00055068,120]
[320718420,1711531850253,-500.0,0.00055068,120]
[320718421,1711531850262,-500.0,0.00055068,120]
[320718422,1711531850272,-479.72,0.00055068,120]
[320718423,1711531850281,-500.0,0.00055068,120]
[320718424,1711531850290,-500.0,0.00055068,120]
[320718425,1711531850300,-333.6,0.00055068,120]
[320718426,1711531850309,-500.0,0.00055068,120]
[320718427,1711531850318,-500.0,0.00055068,120]
[320718428,1711531850327,-500.0,0.00055068,120]
[320718429,1711531850338,-500.0,0.00055068,120]
[320718430,1711531850347,-396.78,0.00055068,120]
[320718431,1711531850357,-500.0,0.00055068,120]
[320718432,1711531850367,-500.0,0.00055068,120]
[320718433,1711531850376,-500.0,0.00055068,120]
[320718434,1711531850386,-551.76,0.00055068,120]
[320718435,1711531850395,-535.46,0.00055068,120]
[320718436,1711531850405,-500.0,0.00055068,120]
[320718437,1711531850415,-151.0,0.00055068,7]
[320718438,1711531850426,-194.232275,0.00055068,7]
[320718439,1711531850451,-546.06175783,0.00055068,120]
[320718440,1711531850475,-500.0,0.00055068,120]
[320718441,1711531850510,-151.0,0.00055068,120]
[320718442,1711531850552,-151.0,0.00055068,120]
[320718443,1711531850586,-500.0,0.00055068,120]
[320718445,1711531850596,-151.0,0.00055068,120]
[320718446,1711531850606,-500.0,0.00055068,120]
[320718447,1711531850615,-151.0,0.00055068,120]
[320718448,1711531850625,-535.24,0.00055068,120]
[320718449,1711531850635,-500.0,0.00055068,120]
[320718450,1711531850644,-736.96,0.00055068,120]
[320718451,1711531850653,-500.0,0.00055068,120]
[320718452,1711531850663,-500.0,0.00055068,120]
[320718453,1711531850672,-181.66,0.00055068,120]
[320718454,1711531850682,-500.0,0.00055068,120]
[320718455,1711531850691,-500.0,0.00055068,120]
[320718456,1711531850701,-500.0,0.00055068,120]
[320718457,1711531850711,-500.0,0.00055068,120]
[320718458,1711531850721,-500.0,0.00055068,120]
[320718459,1711531850730,-516.86,0.00055068,120]
[320718460,1711531850739,-500.0,0.00055068,120]
[320718461,1711531850749,-500.0,0.00055068,120]
[320718462,1711531850759,-563.33,0.00055068,120]
[320718463,1711531850768,-500.0,0.00055068,120]
[320718464,1711531850778,-500.0,0.00055068,120]
[320718465,1711531850787,-592.86,0.00055068,120]
[320718466,1711531850796,-151.0,0.00055068,14]
[320718467,1711531850806,-1836.62,0.00055068,120]
[320718468,1711531850815,-1118.43,0.00055068,120]
[320718469,1711531850825,-151.0,0.00055068,120]
[320718470,1711531850834,-647.34179941,0.00055068,120]
[320718471,1711531850845,-151.0,0.00055068,120]
[320718472,1711531850854,-500.0,0.00055068,120]
[320718473,1711531850863,-740.02,0.00055068,120]
[320718474,1711531850872,-753.17,0.00055068,120]
[320718475,1711531850881,-1656.49,0.00055068,120]
[320718476,1711531850891,-500.0,0.00055068,120]
[320718477,1711531850900,-500.0,0.00055068,120]
[320718478,1711531850910,-151.0,0.00055068,30]
[320718479,1711531850919,-915.24,0.00055068,120]
[320718480,1711531850928,-1170.35,0.00055068,120]
[320718481,1711531850937,-517.36,0.00055068,120]
[320718482,1711531850947,-500.0,0.00055068,120]
[320718483,1711531850956,-230.37628372,0.00055068,120]
[320718484,1711531850966,-500.0,0.00055068,120]
[320718485,1711531850975,-629.46,0.00055068,120]
[320718486,1711531850984,-500.0,0.00055068,120]
[320718487,1711531850993,-579.11,0.00055068,120]
[320718488,1711531851004,-574.86,0.00055068,120]
[320718489,1711531851016,-500.0,0.00055068,120]
[320718490,1711531851025,-680.13,0.00055068,120]
[320718491,1711531851035,-500.0,0.00055068,120]
[320718492,1711531851046,-500.0,0.00055068,120]
[320718493,1711531851055,-874.66,0.00055068,120]
[320718494,1711531851064,-500.0,0.00055068,120]
[320718495,1711531851074,-500.0,0.00055068,120]
[320718496,1711531851085,-670.76,0.00055068,120]
[320718497,1711531851096,-500.0,0.00055068,120]
[320718498,1711531851106,-606.59,0.00055068,120]
[320718499,1711531851115,-151.0,0.00055068,120]
[320718500,1711531851125,-610.94,0.00055068,120]
[320718501,1711531851134,-151.0,0.00055068,120]
[320718502,1711531851143,-500.0,0.00055068,120]
[320718503,1711531851152,-500.0,0.00055068,120]
[320718504,1711531851162,-562.52,0.00055068,120]
[320718505,1711531851171,-1071.44,0.00055068,120]
[320718506,1711531851180,-764.04,0.00055068,120]
[320718507,1711531851190,-676.23,0.00055068,120]
[320718508,1711531851199,-802.42,0.00055068,120]
[320718509,1711531851208,-160.3867,0.00055068,120]
[320718510,1711531851218,-160.3867,0.00055068,120]
[320718511,1711531851227,-591.97,0.00055068,120]
[320718512,1711531851236,-595.54655516,0.00055068,120]
[320718513,1711531851246,-160.3867,0.00055068,120]
[320718514,1711531851254,-160.3867,0.00055068,120]
[320718515,1711531851264,-844.19,0.00055068,120]
[320718516,1711531851273,-1132.52,0.00055068,120]
[320718517,1711531851282,-851.58,0.00055068,120]
[320718518,1711531851292,-500.0,0.00055068,120]
[320718519,1711531851301,-516.24,0.00055068,120]
[320718520,1711531851310,-539.41,0.00055068,120]
[320718521,1711531851320,-484.39937021,0.00055068,120]
[320718522,1711531851329,-681.78,0.00055068,120]
[320718523,1711531851338,-548.74,0.00055068,120]
[320718524,1711531851348,-500.0,0.00055068,120]
[320718525,1711531851358,-500.0,0.00055068,120]
[320718526,1711531851367,-677.36,0.00055068,120]
[320718527,1711531851377,-669.94,0.00055068,120]
[320718528,1711531851386,-151.0,0.00055068,120]
[320718529,1711531851396,-500.0,0.00055068,120]
[320718530,1711531851408,-151.0,0.00055068,120]
[320718531,1711531851418,-755.61,0.00055068,120]
[320718532,1711531851428,-902.14,0.00055068,120]
[320718533,1711531851438,-513.51796716,0.00055068,120]
[320718534,1711531851448,-566.94,0.00055068,120]
[320718535,1711531851458,-704.94,0.00055068,120]
[320718536,1711531851468,-500.0,0.00055068,120]
[320718537,1711531851478,-500.0,0.00055068,120]
[320718538,1711531851488,-1074.4,0.00055068,120]
[320718539,1711531851499,-625.39,0.00055068,120]
[320718540,1711531851510,-702.34,0.00055068,120]
[320718541,1711531851520,-2025.1,0.00055068,120]
[320718542,1711531851530,-500.0,0.00055068,120]
[320718543,1711531851541,-1311.57,0.00055068,120]
[320718544,1711531851551,-544.12,0.00055068,120]
[320718545,1711531851561,-519.05121067,0.00055068,120]
[320718546,1711531851571,-151.0,0.00055068,120]
[320718547,1711531851581,-151.0,0.00055068,120]
[320718548,1711531851591,-745.46,0.00055068,120]
[320718549,1711531851601,-151.0,0.00055068,120]
[320718550,1711531851609,-500.0,0.00055068,120]
[320718551,1711531851618,-500.0,0.00055068,120]
[320718552,1711531851627,-520.99,0.00055068,120]
[320718553,1711531851636,-632.89,0.00055068,120]
[320718554,1711531851645,-566.74,0.00055068,120]
[320718555,1711531851655,-508.31,0.00055068,120]
[320718556,1711531851664,-500.0,0.00055068,120]
[320718557,1711531851673,-500.0,0.00055068,120]
[320718558,1711531851682,-151.0,0.00055068,120]
[320718559,1711531851692,-573.76,0.00055068,120]
[320718560,1711531851701,-151.0,0.00055068,120]
[320718561,1711531851710,-500.0,0.00055068,120]
[320718562,1711531851720,-500.0,0.00055068,120]
[320718563,1711531851729,-754.7,0.00055068,120]
[320718564,1711531851739,-608.0,0.00055068,120]
[320718565,1711531851748,-500.0,0.00055068,120]
[320718566,1711531851757,-810.04,0.00055068,120]
[320718567,1711531851766,-151.0,0.00055068,120]
[320718568,1711531851775,-151.0,0.00055068,120]
[320718569,1711531851785,-500.0,0.00055068,120]
[320718570,1711531851794,-151.0,0.00055068,120]
[320718571,1711531851803,-500.0,0.00055068,120]
[320718572,1711531851812,-151.0,0.00055068,120]
[320718573,1711531851821,-500.0,0.00055068,120]
[320718574,1711531851831,-1121.74,0.00055068,120]
[320718575,1711531851841,-559.96096334,0.00055068,120]
[320718576,1711531851852,-500.0,0.00055068,120]
[320718577,1711531851861,-171.289172,0.00055068,120]
[320718578,1711531851870,-171.289172,0.00055068,120]
[320718579,1711531851879,-517.79,0.00055068,120]
[320718580,1711531851889,-171.289172,0.00055068,120]
[320718581,1711531851898,-171.289172,0.00055068,120]
[320718582,1711531851907,-500.0,0.00055068,120]
[320718583,1711531851916,-500.0,0.00055068,120]
[320718584,1711531851926,-611.7,0.00055068,120]
[320718585,1711531851935,-151.0,0.00055068,120]
[320718586,1711531851944,-1241.73,0.00055068,120]
[320718587,1711531851954,-151.0,0.00055068,120]
[320718588,1711531851963,-500.0,0.00055068,7]
[320718589,1711531851972,-760.26,0.00055068,120]
[320718590,1711531851981,-500.0,0.00055068,120]
[320718591,1711531851990,-674.47,0.00055068,120]
[320718592,1711531851999,-1173.96,0.00055068,120]
[320718593,1711531852009,-605.74,0.00055068,120]
[320718594,1711531852019,-500.0,0.00055068,120]
[320718595,1711531852028,-500.0,0.00055068,120]
[320718596,1711531852037,-392.75663838,0.00055068,120]
[320718597,1711531852046,-500.0,0.00055068,120]
[320718598,1711531852055,-564.99,0.00055068,120]
[320718599,1711531852064,-667.11,0.00055068,120]
[320718600,1711531852073,-510.51563902,0.00055068,120]
[320718601,1711531852083,-549.9,0.00055068,120]
[320718602,1711531852095,-500.0,0.00055068,120]
[320718603,1711531852104,-500.0,0.00055068,120]
[320718604,1711531852113,-548.74,0.00055068,120]
[320718605,1711531852122,-578.56,0.00055068,120]
[320718606,1711531852131,-528.31,0.00055068,120]
[320718607,1711531852140,-1998.9,0.00055068,120]
[320718608,1711531852149,-399.73,0.00055068,120]
[320718609,1711531852158,-500.0,0.00055068,120]
[320718610,1711531852167,-839.13,0.00055068,120]
[320718611,1711531852176,-500.0,0.00055068,120]
[320718612,1711531852186,-500.0,0.00055068,120]
[320718613,1711531852194,-500.0,0.00055068,120]
[320718614,1711531852204,-645.46,0.00055068,120]
[320718615,1711531852213,-500.0,0.00055068,120]
[320718616,1711531852222,-693.58,0.00055068,120]
[320718617,1711531852231,-652.58,0.00055068,120]
[320718618,1711531852240,-500.0,0.00055068,120]
[320718619,1711531852249,-368.95,0.00055068,120]
[320718620,1711531852258,-500.0,0.00055068,120]
[320718621,1711531852267,-1267.72,0.00055068,120]
[320718622,1711531852276,-500.0,0.00055068,120]
[320718623,1711531852285,-792.29,0.00055068,120]
[320718624,1711531852294,-631.72,0.00055068,120]
[320718625,1711531852303,-500.0,0.00055068,120]
[320718626,1711531852312,-906.46,0.00055068,120]
[320718627,1711531852321,-500.0,0.00055068,120]
[320718628,1711531852330,-500.0,0.00055068,120]
[320718629,1711531852339,-514.75057784,0.00055068,120]
[320718630,1711531852349,-500.0,0.00055068,120]
[320718631,1711531852494,-500.0,0.00055068,120]
[320718632,1711531852504,-500.0,0.00055068,120]
[320718633,1711531852513,-500.0,0.00055068,120]
[320718634,1711531852522,-1153.06,0.00055068,120]
[320718635,1711531852531,-500.0,0.00055068,120]
[320718636,1711531852540,-500.0,0.00055068,120]
[320718637,1711531852550,-746.11,0.00055068,120]
[320718638,1711531852559,-717.93,0.00055068,120]
[320718639,1711531852570,-151.0,0.00055068,120]
[320718640,1711531852581,-770.84,0.00055068,120]
[320718641,1711531852593,-509.66,0.00055068,120]
[320718642,1711531852604,-500.0,0.00055068,120]
[320718643,1711531852615,-500.0,0.00055068,120]
[320718644,1711531852626,-500.0,0.00055068,120]
[320718645,1711531852636,-500.0,0.00055068,120]
[320718646,1711531852647,-1239.68,0.00055068,120]
[320718647,1711531852657,-350.6,0.00055068,120]
[320718649,1711531852667,-500.0,0.00055068,120]
[320718650,1711531852677,-500.0,0.00055068,120]
[320718651,1711531852687,-1596.95,0.00055068,120]
[320718652,1711531852697,-500.0,0.00055068,120]
[320718653,1711531852706,-500.0,0.00055068,120]
[320718654,1711531852716,-1339.94,0.00055068,120]
[320718655,1711531852725,-1183.42,0.00055068,120]
[320718656,1711531852735,-500.0,0.00055068,120]
[320718657,1711531852744,-500.0,0.00055068,120]
[320718658,1711531852754,-1491.19,0.00055068,120]
[320718659,1711531852763,-450.56,0.00055068,120]
[320718660,1711531852773,-500.0,0.00055068,120]
[320718661,1711531852783,-1446.75,0.00055068,120]
[320718662,1711531852792,-500.0,0.00055068,120]
[320718663,1711531852802,-151.0,0.00055068,120]
[320718664,1711531852812,-151.0,0.00055068,120]
[320718665,1711531852821,-515.94,0.00055068,120]
[320718666,1711531852831,-500.0,0.00055068,120]
[320718667,1711531852840,-500.0,0.00055068,120]
[320718668,1711531852852,-9255.46,0.00055068,120]
[320718669,1711531852861,-500.0,0.00055068,120]
[320718670,1711531852871,-1027.29,0.00055068,120]
[320718671,1711531852881,-993.13,0.00055068,120]
[320718672,1711531852890,-625.4,0.00055068,120]
[320718673,1711531852900,-500.0,0.00055068,120]
[320718674,1711531852911,-500.0,0.00055068,120]
[320718675,1711531852920,-500.0,0.00055068,120]
[320718676,1711531852930,-6010.57,0.00055068,120]
[320718677,1711531852940,-2479.29,0.00055068,120]
[320718678,1711531852949,-689.69,0.00055068,120]
[320718679,1711531852960,-1543.77,0.00055068,120]
[320718680,1711531852970,-1516.23,0.00055068,120]
[320718681,1711531852980,-1298.51,0.00055068,120]
[320718682,1711531852990,-500.0,0.00055068,120]
[320718683,1711531853001,-900.15,0.00055068,120]
[320718684,1711531853015,-7570.24,0.00055068,120]
[320718685,1711531853026,-2518.49,0.00055068,120]
[320718686,1711531853035,-1843.36,0.00055068,120]
[320718687,1711531853044,-1951.1,0.00055068,120]
[320718688,1711531853054,-8217.31,0.00055068,120]
[320718689,1711531853064,-10648.76,0.00055068,120]
[320718690,1711531853073,-815.48,0.00055068,120]
[320718691,1711531853082,-4567.74,0.00055068,120]
[320718692,1711531853092,-5821.4,0.00055068,120]
[320718693,1711531853103,-16192.89,0.00055068,120]
[320718694,1711531853112,-1945.24,0.00055068,120]
[320718695,1711531853122,-204.57,0.00055068,120]
[320718696,1711531853131,-14993.94,0.00055068,120]
[320718697,1711531853141,-638.93,0.00055068,120]
[320718698,1711531853150,-607.15,0.00055068,120]
[320718699,1711531853160,-4506.13,0.00055068,120]
[320718700,1711531853169,-975.08,0.00055068,120]
[320718701,1711531853179,-2152.72,0.00055068,120]
[320718702,1711531853188,-500.0,0.00055068,120]
[320718703,1711531853197,-2025.95,0.00055068,120]
[320718704,1711531853207,-834.27,0.00055068,120]
[320718705,1711531853216,-1941.23,0.00055068,120]
[320718706,1711531853226,-500.0,0.00055068,120]
[320718707,1711531853234,-1253.97,0.00055068,120]
[320718708,1711531853244,-500.0,0.00055068,120]
[320718709,1711531853253,-1846.5,0.00055068,120]
[320718710,1711531853262,-718.34,0.00055068,120]
[320718711,1711531853272,-5612.19,0.00055068,120]
[320718712,1711531853281,-2198.64,0.00055068,120]
[320718713,1711531853291,-88899.08,0.00055068,120]
[320718714,1711531853300,-895.87,0.00055068,120]
[320718715,1711531853309,-1956.19,0.00055068,120]
[320718716,1711531853319,-5057.24,0.00055068,120]
[320718717,1711531853328,-500.0,0.00055068,120]
[320718718,1711531853337,-4505.88,0.00055068,120]
[320718719,1711531853349,-831.09,0.00055068,120]
[320718720,1711531853359,-12667.88,0.00055068,120]
[320718721,1711531853368,-2228.45,0.00055068,120]
[320718722,1711531853379,-500.0,0.00055068,120]
[320718723,1711531853389,-49453.04,0.00055068,120]
[320718724,1711531853399,-20350.58,0.00055068,120]
[320718725,1711531853408,-1986.37,0.00055068,120]
[320718726,1711531853417,-33040.61,0.00055068,120]
[320718727,1711531853427,-500.0,0.00055068,7]
[320718728,1711531853435,-511.66491048,0.00055068,120]
[320718729,1711531853445,-500.0,0.00055068,120]
[320718730,1711531853454,-1568.65,0.00055068,120]
[320718731,1711531853463,-213.65459458,0.00055068,120]
[320718732,1711531853472,-1356.91,0.00055068,120]
[320718733,1711531853482,-4171.87,0.00055068,120]
[320718734,1711531853492,-8728.41,0.00055068,120]
[320718735,1711531853501,-1972.92,0.00055068,120]
[320718736,1711531853510,-1671.83,0.00055068,120]
[320718737,1711531853519,-654.94,0.00055068,120]
[320718738,1711531853529,-500.0,0.00055068,120]
[320718739,1711531853539,-1146.86,0.00055068,120]
[320718740,1711531853549,-2325.18,0.00055068,120]
[320718741,1711531853558,-1591.24,0.00055068,120]
[320718742,1711531853567,-500.0,0.00055068,120]
[320718743,1711531853576,-975.38,0.00055068,120]
[320718745,1711531853585,-1189.59,0.00055068,120]
[320718746,1711531853596,-500.0,0.00055068,65]
[320718747,1711531853606,-640.39,0.00055068,120]
[320718748,1711531853616,-10580.07,0.00055068,120]
[320718749,1711531853626,-4650.41,0.00055068,120]
[320718750,1711531853636,-500.0,0.00055068,120]
[320718751,1711531853646,-1777.65,0.00055068,120]
[320718752,1711531853656,-524.94,0.00055068,120]
[320718753,1711531853665,-2207.18,0.00055068,120]
[320718754,1711531853674,-5257.55,0.00055068,120]
[320718755,1711531853684,-500.0,0.00055068,120]
[320718756,1711531853694,-779.25,0.00055068,120]
[320718757,1711531853704,-500.0,0.00055068,120]
[320718758,1711531853714,-2469.94,0.00055068,120]
[320718759,1711531853723,-500.0,0.00055068,120]
[320718760,1711531853732,-757.65,0.00055068,120]
[320718761,1711531853742,-552.21,0.00055068,120]
[320718762,1711531853752,-4250.27,0.00055068,120]
[320718763,1711531853763,-4915.26,0.00055068,120]
[320718764,1711531853772,-3918.75,0.00055068,120]
[320718765,1711531853781,-53287.23,0.00055068,120]
[320718766,1711531853790,-500.0,0.00055068,120]
[320718767,1711531853800,-648.69,0.00055068,120]
[320718768,1711531853809,-4113.43,0.00055068,120]
[320718769,1711531853818,-500.0,0.00055068,120]
[320718770,1711531853828,-1576.62,0.00055068,120]
[320718771,1711531853837,-5576.53,0.00055068,120]
[320718772,1711531853849,-3314.77,0.00055068,120]
[320718773,1711531853859,-1034.84,0.00055068,120]
[320718774,1711531853868,-786.38,0.00055068,120]